[Event "German-ch Blitz Women 2022"]
[Site "Magdeburg"]
[Date "2022.08.13"]
[Round "21.1"]
[White "Zschischang, Marine"]
[Black "Paehtz, Elisabeth"]
[Result "0-1"]
[ECO "A48"]
[WhiteElo "2083"]
[BlackElo "2484"]
[Annotator "TA"]
[PlyCount "85"]
[EventDate "2022.08.10"]
[EventType "tourn"]
[EventCountry "GER"]
[SourceTitle "playchess.com"]
[Source "ChessBase"]
[SourceQuality "1"]
[TimeControl "180+2"]

{[%evp 11,85,-5,15,0,11,5,8,7,6,13,18,-1,5,-48,-36,-69,-62,-79,-76,-103,-95,-122,-123,-120,-112,-217,-52,-125,-81,-161,-68,-81,-65,-178,-173,-180,-173,-164,-127,-192,-176,-154,-43,-195,-198,-258,-257,-263,-157,-278,-262,-626,-618,-598,-571,-560,-552,-1104,-1079,-1450,-1406,-1377,-1378,-1610,-1545,-1405,-1154,-1386,-1387,-1354,-1341,-1379,-1350,-1370,-1333,-1284]} 1. d4 {[%emt 0:00:00]} Nf6 {[%emt 0:00:01]} 2. Nf3 {[%emt 0:00:01]} g6 {[%emt 0:00:01]} 3. Nc3 {[%emt 0:00:02]} d5 {[%emt 0:00:02]} 4. Bf4 {[%emt 0:00:01]} c6 {[%emt 0:00:02]} 5. e3 {[%emt 0:00:02]} Bg7 {[%emt 0:00:01]} 6. Be2 {[%emt 0:00:01]} Nbd7 {[%emt 0:00:04]} 7. Ne5 {[%emt 0:00:01] D00: 1 d4 d5: Unusual lines.} Qb6 {[%emt 0:00:09]} 8. Na4 {[%emt 0:00:03]} Qa5+ {[%emt 0:00:01]} 9. c3 {[%emt 0:00:01] The position is equal.} Nxe5 {[%emt 0:00:05]} (9... O-O {is interesting.} 10. O-O Re8 11. Re1 Nxe5 12. Bxe5 Ne4) 10. Bxe5 {[%emt 0:00:02] [#]} h5 $146 {[%emt 0:00:22]} ({Predecessor:} 10... O-O 11. O-O Nd7 12. b4 Qd8 13. Bxg7 Kxg7 14. f4 h5 15. Nc5 Nf6 16. Bf3 Qc7 {½-½ (35) Silva Lillo,S (2368)-Emmenecker,P (2205) France 2007}) 11. h4 {[%emt 0:00:05]} Qd8 {[%emt 0:00:04]} 12. b4 {[%emt 0:00:08]} ({Better is} 12. Nc5 $11) 12... b6 {[%emt 0:00:04]} 13. Bd3 {[%emt 0:00:15]} O-O {[%emt 0:00:05]} 14. Qc2 {[%emt 0:00:13]} Ng4 {[%emt 0:00:13]} 15. Bxg7 {[%emt 0:00:04]} Kxg7 {[%emt 0:00:01]} 16. e4 {[%emt 0:00:16]} dxe4 {[%emt 0:00:17]} 17. Bxe4 {[%emt 0:00:03]} Qd6 {[%emt 0:00:01]} 18. g3 {[%emt 0:00:15]} (18. Nb2 $17) 18... Nf6 $2 {[%emt 0:00:03]} (18... f5 $19 19. Bf3 f4) 19. Bg2 {[%emt 0:00:05]} ({White should play} 19. O-O $1 $15) 19... Bf5 {[%emt 0:00:02]} 20. Qc1 {[%emt 0:00:16] [#]} (20. Qe2 $17) 20... Bd3 {[%emt 0:00:09]} (20... e5 $1 $19 21. O-O exd4) 21. Nb2 $15 {[%emt 0:00:04]} Ba6 {[%emt 0:00:02] 0x0.0019ed129cb4dp-1022s more active pieces. The white rooks are badly placed.} 22. Qe3 {[%emt 0:00:08] [#]} (22. Qd2 $15) 22... Ng4 $1 $19 {[%emt 0:00:03]} 23. Qd2 {[%emt 0:00:21]} Qe6+ {[%emt 0:00:04]} 24. Kd1 {[%emt 0:00:06]} Qf5 $36 {[%emt 0:00:08][%mdl 2048] Black is really pushing.} 25. f4 {[%emt 0:00:05]} (25. f3 $17 {might work better.} Nh6 26. Re1) 25... Rac8 {[%emt 0:00:09]} 26. Re1 {[%emt 0:00:11]} e6 {[%emt 0:00:05]} ({Black should try} 26... Rfd8 $17 {Threatens to win with ...c5.} 27. Kc1 (27. Rxe7 $2 Re8 $19) 27... c5 28. bxc5 bxc5) 27. Be4 $2 {[%emt 0:00:04] This move loses the game for White.} (27. a4 $1 $15) 27... Qf6 {[%emt 0:00:01] White must now prevent ...c5.} 28. Bd3 {[%emt 0:00:05]} (28. a4 {is a better defense.} c5 29. b5) 28... Bxd3 {[%emt 0:00:19]} 29. Nxd3 {[%emt 0:00:01]} Qf5 {[%emt 0:00:01]} (29... c5 $19 30. bxc5 bxc5 31. dxc5 (31. Nxc5 $2 Rxc5 32. Rc1 Rc4 $19) 31... Rfd8) 30. Ne5 {[%emt 0:00:12]} (30. Kc1 $17) 30... c5 {[%emt 0:00:02]} 31. Nf3 $2 {[%emt 0:00:14]} (31. bxc5 bxc5 32. d5 (32. Nd7 $2 Rfd8 $19)) 31... cxb4 {[%emt 0:00:03] Black is clearly winning.} 32. cxb4 {[%emt 0:00:04]} Rfd8 {[%emt 0:00:07][%cal Oe6e5] Hoping for ...e5!} 33. Rc1 {[%emt 0:00:02]} Qd5 {[%emt 0:00:02]} 34. Rf1 {[%emt 0:00:15]} Rxc1+ {[%emt 0:00:04]} 35. Kxc1 {[%emt 0:00:01]} Qc4+ {[%emt 0:00:02]} 36. Kb2 {[%emt 0:00:06]} Qxf1 {[%emt 0:00:01]} 37. Qc3 {[%emt 0:00:07]} Qf2+ {[%emt 0:00:04]} 38. Kb3 {[%emt 0:00:02]} Qe3 {[%emt 0:00:02]} 39. d5+ {[%emt 0:00:03]} Qxc3+ {[%emt 0:00:01]} 40. Kxc3 {[%emt 0:00:01]} Rxd5 {[%emt 0:00:01]} 41. a4 {[%emt 0:00:06]} Ne3 {[%emt 0:00:04]} 42. Ne5 {[%emt 0:00:08]} Nf5 {[%emt 0:00:02]} 43. b5 {Weighted Error Value: White=0.93/Black=0.31} 0-1

[Event "German-ch Blitz Women 2022"]
[Site "Magdeburg"]
[Date "2022.08.13"]
[Round "21.2"]
[White "Staerk, Elisa"]
[Black "Schuster, Rebekka"]
[Result "1-0"]
[ECO "A84"]
[WhiteElo "1947"]
[BlackElo "1815"]
[Annotator "TA"]
[PlyCount "37"]
[EventDate "2022.08.10"]
[EventType "tourn"]
[EventCountry "GER"]
[SourceTitle "playchess.com"]
[Source "ChessBase"]
[SourceQuality "1"]
[TimeControl "180+2"]

{[%evp 9,37,41,39,35,63,60,60,60,61,58,69,57,62,55,66,37,42,54,93,26,16,0,11,-270,415,276,254,125,248,253]} 1. d4 {[%emt 0:00:00]} e6 {[%emt 0:00:01]} 2. c4 {[%emt 0:00:01]} f5 {[%emt 0:00:00]} 3. Nc3 {[%emt 0:00:01]} Nf6 {[%emt 0:00:01]} 4. g3 {[%emt 0:00:01]} Be7 {[%emt 0:00:01]} 5. Bg2 {[%emt 0:00:01]} d6 {[%emt 0:00:01]} 6. Nh3 {[%emt 0:00:01] A91: Classical Dutch: Early Deviations.} Nc6 {[%emt 0:00:01]} 7. O-O {[%emt 0:00:02] White is more active.} O-O {[%emt 0:00:01]} 8. d5 {[%emt 0:00:08] White is slightly better.} Ne5 {[%emt 0:00:05]} 9. b3 {[%emt 0:00:07]} c6 {[%emt 0:00:23]} 10. dxe6 {[%emt 0:00:05]} Bxe6 {[%emt 0:00:03][%cal Of6e4]} 11. Bb2 {[%emt 0:00:08] [#]} Qe8 $146 {[%emt 0:00:25]} ({Predecessor:} 11... Kh8 12. Nf4 Bg8 13. Qc2 Qa5 14. e3 Nfd7 15. Rad1 Qc7 16. Rd2 Nc5 17. Rfd1 a5 {0-1 (34) Logothetis,S (2270)-Aggelopoulos,G (2090) Athens 2001}) 12. Qc2 {[%emt 0:00:18]} Rd8 {[%emt 0:00:10]} 13. Rad1 {[%emt 0:00:03]} Nf7 {[%emt 0:00:36]} 14. e4 {[%emt 0:00:07]} ({Better is} 14. e3 $16) 14... fxe4 $11 {[%emt 0:00:22]} 15. Nxe4 {[%emt 0:00:01]} Nxe4 {[%emt 0:00:16]} 16. Bxe4 $4 {[%emt 0:00:01][%mdl 8192]} (16. Qxe4 $11 {and White is okay.} Bxh3 17. Bxh3) 16... h6 $4 {[%emt 0:00:13][%mdl 8192]} (16... Bxh3 $19 17. Bxh7+ Kh8 18. Bxg7+ Kxg7 19. Qg6+ Kh8) 17. Nf4 {[%emt 0:00:04] Intending Bh7+ and mate.} Ng5 {[%emt 0:00:13] [#] Inhibits Bh7+.} 18. Bg6 {[%emt 0:00:21]} ({But not} 18. Qc3 $2 Bf6 19. Qc2 Bxb2 $19) (18. Bh7+ $1 $18 {[%mdl 512] is the precise move to win.} Nxh7 19. Nxe6) 18... Bf7 {[%emt 0:00:20]} (18... Qd7 $16) 19. Bf5 {[%emt 0:00:06] Weighted Error Value: White=0.58/Black=0.59} ({Not} 19. Qc3 $2 Bf6 20. Bxf7+ Rxf7 $19) 1-0

[Event "German-ch Blitz Women 2022"]
[Site "Magdeburg"]
[Date "2022.08.13"]
[Round "21.3"]
[White "Melamed, Tatjana"]
[Black "Fock, Sana"]
[Result "1-0"]
[ECO "B50"]
[WhiteElo "2380"]
[BlackElo "1807"]
[Annotator "TA"]
[PlyCount "67"]
[EventDate "2022.08.10"]
[EventType "tourn"]
[EventCountry "GER"]
[SourceTitle "playchess.com"]
[Source "ChessBase"]
[SourceQuality "1"]
[TimeControl "180+2"]

{[%evp 13,67,29,33,-4,21,-1,-6,-14,0,0,0,0,0,0,0,0,0,-27,0,0,26,-7,58,49,41,0,68,62,62,50,52,53,56,34,95,84,202,208,192,196,1003,998,985,984,935,931,5577,5585,2576,2275,29996,1247,1219,1233,1220,1181]} 1. e4 {[%emt 0:00:01]} c5 {[%emt 0:00:00]} 2. Nf3 {[%emt 0:00:01]} d6 {[%emt 0:00:01]} 3. c3 {[%emt 0:00:01]} Nc6 {[%emt 0:00:02]} 4. Bc4 {[%emt 0:00:02]} e6 {[%emt 0:00:05]} 5. Qe2 {[%emt 0:00:01]} Nf6 {[%emt 0:00:10]} 6. Bb3 {[%emt 0:00:01]} Be7 {[%emt 0:00:02]} 7. O-O {[%emt 0:00:01]} O-O {[%emt 0:00:02]} 8. d3 {[%emt 0:00:01] B50: Sicilian: 2...d6, Miscellaneous.} Rb8 {[%emt 0:00:27]} 9. Nbd2 {[%emt 0:00:03]} (9. d4 $5 {[%cal Rd4c5]}) 9... b5 {[%emt 0:00:02][%cal Bb7b5,Bb5b4][%mdl 32]} 10. Re1 {[%emt 0:00:01] The position is equal.} a5 {[%emt 0:00:12] [#]} 11. a4 $146 {[%emt 0:00:03]} ({Predecessor:} 11. Bc2 Ba6 12. Nf1 b4 13. Ba4 Qc7 14. Bxc6 Qxc6 15. c4 Nd7 16. b3 Bf6 17. Bb2 {1-0 (35) Ponkratov,P (2407)-Mikhalchenko,P (2224) Dagomys 2004}) 11... b4 {[%emt 0:00:12]} 12. Bc4 {[%emt 0:00:03]} d5 {[%emt 0:00:23]} 13. Bb5 {[%emt 0:00:05]} Bb7 {[%emt 0:00:21]} 14. e5 {[%emt 0:00:04]} Nd7 {[%emt 0:00:07]} 15. d4 {[%emt 0:00:10]} c4 {[%emt 0:00:08]} 16. Nf1 $1 {[%emt 0:00:04]} Qc8 {[%emt 0:00:31]} 17. Ng3 {[%emt 0:00:07]} (17. Ng5 {with more complications.} Ba6 18. Bxa6 Qxa6 19. Qh5) 17... Nd8 {[%emt 0:00:05]} ({Better is} 17... bxc3 $11 18. bxc3 Ba6) 18. Bxd7 {[%emt 0:00:17]} (18. Nh5 {seems wilder.} Bc6 19. Bg5 Bxg5 20. Nxg5 Bxb5 21. axb5 bxc3 22. bxc3 Rxb5 23. Qg4) 18... Qxd7 {[%emt 0:00:01]} 19. Bg5 {[%emt 0:00:02]} f5 {[%emt 0:00:09]} ({Black should play} 19... Bxg5 $11 20. Nxg5 h6) 20. exf6 $1 $14 {[%emt 0:00:07]} Bxf6 {[%emt 0:00:02]} 21. Bxf6 {[%emt 0:00:02]} Rxf6 {[%emt 0:00:02]} 22. Ne5 {[%emt 0:00:04]} Qc7 {[%emt 0:00:09]} 23. Nh5 {[%emt 0:00:08] Pair of Knights!} Rf5 {[%emt 0:00:11] [#]} (23... Rh6 $1 $14) 24. Qg4 $1 $36 {[%emt 0:00:07][%mdl 2048] Keeping Black busy. White is more active.} Nc6 {[%emt 0:00:15]} (24... bxc3 $16 {might work better.} 25. bxc3 Bc8) 25. Nxc6 $18 {[%emt 0:00:08]} Bxc6 {[%emt 0:00:01]} 26. Rxe6 {[%emt 0:00:04]} g6 {[%emt 0:00:06] [#]} (26... Rf7) 27. Rxg6+ $1 {[%emt 0:00:09][%mdl 512]} hxg6 {[%emt 0:00:01]} 28. Qxg6+ {[%emt 0:00:01]} Kh8 {[%emt 0:00:02]} 29. Qxf5 {[%emt 0:00:03] Threatens to win with Qf6+.} Re8 {[%emt 0:00:05]} 30. Qf6+ {[%emt 0:00:09]} Kg8 {[%emt 0:00:02]} 31. Qg6+ {[%emt 0:00:03]} Kh8 {[%emt 0:00:01]} 32. Qh6+ {[%emt 0:00:11]} (32. Nf6 $142 Re1+ 33. Rxe1 Qxh2+ 34. Kxh2 bxc3 35. Qh7#) 32... Qh7 {[%emt 0:00:02]} 33. Qxh7+ {[%emt 0:00:01]} Kxh7 {[%emt 0:00:00]} 34. Nf6+ {[%emt 0:00:01] Weighted Error Value: White=0.09 (flawless) /Black=0.57} 1-0

[Event "German-ch Blitz Women 2022"]
[Site "Magdeburg"]
[Date "2022.08.13"]
[Round "21.4"]
[White "Schulze, Lara"]
[Black "Heil, Marina"]
[Result "0-1"]
[ECO "B07"]
[WhiteElo "2292"]
[BlackElo "1926"]
[Annotator "TA"]
[PlyCount "131"]
[EventDate "2022.08.10"]
[EventType "tourn"]
[EventCountry "GER"]
[SourceTitle "playchess.com"]
[Source "ChessBase"]
[SourceQuality "1"]
[TimeControl "180+2"]

{[%evp 14,131,14,11,26,19,35,15,47,51,41,33,31,39,37,31,66,7,42,0,46,-38,-21,-277,-275,-332,-316,-452,-445,-445,-439,-495,-503,-527,-509,-645,-657,-29988,-889,-895,-747,-1133,-1063,-842,-384,-380,-382,-727,-725,-645,-608,-718,-679,-712,0,-706,-702,-705,-677,-667,-652,-979,-993,-956,-947,-926,-900,-994,-806,-807,-780,-1042,-1022,-1032,-1006,-1001,-945,-1025,-927,-944,-938,-1120,-1139,-1082,-1082,-29973,-29974,-29976,-29978,-29981,-29976,-29974,-10225,-29985,-29971,-29981,-6026,-881,-216,-644,-618,-1002,-720,-908,-865,-29972,-29972,-29980,-29981,-29981,-29981,-29980,-29979,-29979,-29980,-29994,-5110,-29975,-29976,-29973]} 1. e4 {[%emt 0:00:02]} d6 {[%emt 0:00:02]} 2. d4 {[%emt 0:00:02]} Nf6 {[%emt 0:00:01]} 3. Nc3 {[%emt 0:00:02]} Nbd7 {[%emt 0:00:00]} 4. g3 {[%emt 0:00:02]} e5 {[%emt 0:00:01]} 5. Nge2 {[%emt 0:00:02]} Be7 {[%emt 0:00:03]} 6. Bg2 {[%emt 0:00:01]} O-O {[%emt 0:00:05]} 7. O-O {[%emt 0:00:01]} c6 {[%emt 0:00:02]} 8. a4 {[%emt 0:00:01]} a5 {[%emt 0:00:02] B07: Pirc Defence: Miscellaneous Systems.} 9. h3 {[%emt 0:00:04]} h6 {[%emt 0:00:06]} 10. g4 {[%emt 0:00:09] [#]} Nh7 $146 {[%emt 0:00:08] The position is equal.} ({Predecessor:} 10... Re8 11. Re1 exd4 12. Nxd4 Nc5 13. Nf5 Bxf5 14. exf5 d5 15. Be3 Bd6 16. Bd4 Nfe4 17. Nxe4 Nxe4 18. Bxe4 Rxe4 19. Rxe4 dxe4 {½-½ (51) Dudzinski,P (2201)-Elissalt Cardenas,H (2297) Chess.com INT 2021}) 11. Ng3 {[%emt 0:00:06]} Bg5 {[%emt 0:00:30]} 12. f4 {[%emt 0:00:10]} exf4 {[%emt 0:00:07]} 13. Bxf4 {[%emt 0:00:03]} Bxf4 {[%emt 0:00:07]} 14. Rxf4 {[%emt 0:00:01]} Ng5 {[%emt 0:00:05]} 15. Nf5 {[%emt 0:00:06]} (15. Rf2 $14) 15... Nb6 {[%emt 0:00:07]} 16. Rf1 {[%emt 0:00:12]} Nc4 {[%emt 0:00:12]} (16... d5 $11 {deserves consideration.}) 17. Qc1 {[%emt 0:00:10]} (17. Qe2 $14 Bxf5 18. gxf5) 17... Qb6 $15 {[%emt 0:00:11] Hoping for ...Bxf5.} 18. b3 $2 {[%emt 0:00:07][%mdl 8192] Black keeps a firm grip on the game.} (18. Ne7+ $11 Kh7 19. Ne2) 18... Bxf5 $19 {[%emt 0:00:07]} 19. bxc4 {[%emt 0:00:08]} Qxd4+ {[%emt 0:00:04]} 20. Kh1 {[%emt 0:00:02]} (20. Kh2 {was worth a try.}) 20... Bxg4 {[%emt 0:00:07]} ({But not} 20... Qxc3 $2 21. gxf5 Qxc4 22. f6 $19) 21. hxg4 {[%emt 0:00:23]} Qxc3 {[%emt 0:00:02]} 22. Qf4 {[%emt 0:00:01]} Qxc4 {[%emt 0:00:13]} 23. Qxd6 {[%emt 0:00:10]} Rad8 {[%emt 0:00:15]} 24. Qc7 {[%emt 0:00:22]} Rd2 {[%emt 0:00:01]} 25. Qxb7 {[%emt 0:00:07]} Qxc2 {[%emt 0:00:05]} (25... Qe2 $142 26. Rg1 Qxg4 27. Qc7 Nxe4 28. Ra3 Qh5+ 29. Rh3 Nf2+ 30. Kh2 Nxh3 31. Kg3 Nxg1 32. Qe7 Qg6+ 33. Kf4 Qxg2 34. c4 Rd4+ 35. Kf5 Qg6+ 36. Ke5 Nf3#) 26. Rac1 {[%emt 0:00:23]} Qd3 {[%emt 0:00:04]} ({Worse is} 26... Rxg2 27. Rxc2 Rxc2 28. Qc7 $17) 27. Qxc6 {[%emt 0:00:04]} Qg3 {[%emt 0:00:20][%csl Gd2,LRg2,LRg4][%cal Rg3g2] [#]} 28. e5 {[%emt 0:00:02]} Ne6 {[%emt 0:00:16]} (28... Qh4+ $142 29. Kg1 Rfd8) 29. Qf3 {[%emt 0:00:10]} Qh4+ {[%emt 0:00:04]} ({Don't blunder} 29... Qxe5 $2 30. Rce1 Qb8 31. Rb1 $19) 30. Kg1 $2 {[%emt 0:00:10]} (30. Qh3 Qxh3+ 31. Bxh3) 30... Nd4 {[%emt 0:00:09][%cal Be6d4,Bd4e2,Be2g3][%mdl 32]} 31. Qh3 {[%emt 0:00:15]} Ne2+ {[%emt 0:00:04]} 32. Kh1 {[%emt 0:00:01]} Ng3+ {[%emt 0:00:14]} 33. Kg1 {[%emt 0:00:03]} Ne2+ {[%emt 0:00:02]} 34. Kh1 $1 {[%emt 0:00:01]} Qxh3+ {[%emt 0:00:01]} 35. Bxh3 {[%emt 0:00:02]} Nxc1 {[%emt 0:00:01]} 36. Rxc1 {[%emt 0:00:01][%mdl 4096] Endgame KRR-KRB} Re8 {[%emt 0:00:05]} 37. Rc5 {[%emt 0:00:04]} Rb8 {[%emt 0:00:04]} 38. Rc1 {[%emt 0:00:14] Inhibits Rb1.} g6 {[%emt 0:00:03]} 39. Bf1 {[%emt 0:00:03]} Rb4 {[%emt 0:00:02][%csl LRa4,LRg4]} 40. Bb5 {[%emt 0:00:02]} Kg7 {[%emt 0:00:01]} 41. Rg1 {[%emt 0:00:04]} Re4 {[%emt 0:00:02]} 42. Rf1 {[%emt 0:00:04]} Rxe5 {[%emt 0:00:02]} 43. Bc4 {[%emt 0:00:00]} f6 {[%emt 0:00:01] ...Rd4 is the strong threat.} 44. Bb5 {[%emt 0:00:02]} g5 {[%emt 0:00:02]} 45. Rg1 {[%emt 0:00:02]} Rd4 {[%emt 0:00:01]} 46. Kh2 {[%emt 0:00:02]} Ree4 {[%emt 0:00:01]} 47. Kh3 {[%emt 0:00:01]} Re3+ {[%emt 0:00:02]} 48. Kh2 {[%emt 0:00:01]} Kg6 {[%emt 0:00:02]} 49. Bc6 {[%emt 0:00:03]} h5 {[%emt 0:00:02]} 50. gxh5+ {[%emt 0:00:02]} Kxh5 {[%emt 0:00:00]} 51. Rf1 {[%emt 0:00:01]} Re2+ {[%emt 0:00:03]} 52. Kg3 {[%emt 0:00:02]} Rg4+ {[%emt 0:00:02]} (52... Rd3+ $142 53. Rf3 Ree3 54. Rxe3 Rxe3+ 55. Kf2 Ra3 56. Kg2 Kg4 57. Kh2 Kf4 58. Bd7 Kf3 59. Kg1 Ra1+ 60. Kh2 Kf2 61. Kh3 Rg1 62. Kh2 g4 63. Bc6 Rg3 64. Bg2 Rxg2+ 65. Kh1 Rg3 66. Kh2 Rh3#) 53. Kh3 {[%emt 0:00:01]} Re3+ {[%emt 0:00:01]} 54. Kh2 {[%emt 0:00:01]} Rh4+ {[%emt 0:00:02]} (54... Kh4 $142 55. Bf3 Rxa4 56. Bg2 Ra2 57. Rxf6 Ree2 58. Rh6+ Kg4 59. Kh1 Rxg2 60. Rh4+ Kf3 61. Rf4+ Ke2 62. Re4+ Kd2 63. Kxg2 Kd3+ 64. Kf3 {[#]} Rf2+ $3 {[%mdl 512]} 65. Kxf2 Kxe4 66. Ke2 g4 67. Ke1 a4 68. Ke2 g3 69. Kf1 a3 70. Ke2 a2 71. Kd2 g2 72. Kc3 a1=Q+ 73. Kb4 g1=Q 74. Kc4 Qgd4+ 75. Kb5 Qaa4#) 55. Kg2 {[%emt 0:00:01]} Reh3 $2 {[%emt 0:00:03]} (55... Rc4 56. Bb5 Rc2+ 57. Rf2 Rxf2+ 58. Kxf2 Ra3) 56. Rxf6 {[%emt 0:00:02]} (56. Be8+ Kh6 57. Rxf6+ Kh7 58. Rf7+ Kh6 59. Rf6+ Kh7 60. Rf7+ Kh6 61. Rf6+) 56... Rh2+ {[%emt 0:00:02]} 57. Kg1 {[%emt 0:00:02]} Ra2 {[%emt 0:00:03] ( -> ...Rd4)} 58. Bf3+ {[%emt 0:00:03]} g4 {[%emt 0:00:01][%cal Bg5g4,Bg4g3][%mdl 32]} 59. Bc6 {[%emt 0:00:01]} g3 {[%emt 0:00:04]} 60. Bb5 {[%emt 0:00:04]} Rd4 {[%emt 0:00:02]} 61. Rf1 {[%emt 0:00:02]} Kg4 {[%emt 0:00:01]} 62. Re1 {[%emt 0:00:03]} Rdd2 {[%emt 0:00:03]} 63. Bc6 {[%emt 0:00:01]} Kh3 {[%emt 0:00:02]} 64. Rc1 {[%emt 0:00:06]} Rh2 {[%emt 0:00:02]} (64... Rac2 $142 65. Bd7+ Rxd7 66. Rf1 Rdd2 67. Re1 Rh2 68. Re8 Rcg2+ 69. Kf1 Rh1#) 65. Bd7+ {[%emt 0:00:02]} Kh4 {[%emt 0:00:02]} 66. Rc4+ {[%emt 0:00:02] Weighted Error Value: White=0.99/Black=0.68} 0-1

[Event "German-ch Blitz Women 2022"]
[Site "Magdeburg"]
[Date "2022.08.13"]
[Round "21.5"]
[White "Nikolaeva, Mariya A"]
[Black "Leveikina, Jevgenija"]
[Result "1-0"]
[ECO "B13"]
[WhiteElo "1309"]
[BlackElo "2061"]
[Annotator "NA RC"]
[PlyCount "97"]
[EventDate "2022.08.10"]
[EventType "tourn"]
[EventCountry "GER"]
[SourceTitle "playchess.com"]
[Source "ChessBase"]
[SourceQuality "1"]
[TimeControl "180+2"]

1. e4 c6 2. d4 d5 3. exd5 {[%emt 0:00:03]} cxd5 {[%emt 0:00:01]} 4. Bd3 {[%emt 0:00:01]} Nc6 {[%emt 0:00:01]} 5. c3 {[%emt 0:00:01]} Nf6 {[%emt 0:00:01]} 6. Nf3 {[%emt 0:00:01]} Bg4 {[%emt 0:00:01]} 7. h3 {[%emt 0:00:01]} Bh5 {[%emt 0:00:01]} 8. Bf4 {[%emt 0:00:02]} e6 {[%emt 0:00:01]} 9. Nbd2 {[%emt 0:00:01]} Bd6 {[%emt 0:00:02]} 10. Bxd6 {[%emt 0:00:04]} Qxd6 {[%emt 0:00:01]} 11. O-O {[%emt 0:00:03]} O-O {[%emt 0:00:02]} 12. Re1 {[%emt 0:00:04]} a6 {[%emt 0:00:06]} 13. Qc1 {[%emt 0:00:05]} Rac8 {[%emt 0:00:07]} 14. Ne5 {[%emt 0:00:03]} Nxd4 {[%emt 0:00:06]} 15. Nf1 {[%emt 0:00:15]} Nc6 {[%emt 0:00:07]} 16. Nxc6 {[%emt 0:00:19]} Rxc6 {[%emt 0:00:03]} 17. Ng3 {[%emt 0:00:02]} Bg6 {[%emt 0:00:02]} 18. Be2 {[%emt 0:00:06]} b5 {[%emt 0:00:09]} 19. Qg5 {[%emt 0:00:01]} Rfc8 {[%emt 0:00:11]} 20. Bf3 {[%emt 0:00:02]} Rc4 {[%emt 0:00:16]} 21. Rad1 {[%emt 0:00:07]} Qf4 {[%emt 0:00:10]} 22. Qxf4 {[%emt 0:00:06]} Rxf4 {[%emt 0:00:01]} 23. Ne2 {[%emt 0:00:01]} Rfc4 {[%emt 0:00:01]} 24. Nd4 {[%emt 0:00:14]} h6 {[%emt 0:00:03]} 25. Kf1 {[%emt 0:00:04]} b4 {[%emt 0:00:15]} 26. cxb4 {[%emt 0:00:14]} Rxb4 {[%emt 0:00:04]} 27. b3 {[%emt 0:00:04]} Be4 {[%emt 0:00:19]} 28. Be2 {[%emt 0:00:05]} a5 {[%emt 0:00:03]} 29. Nb5 {[%emt 0:00:08]} Rc2 {[%emt 0:00:06]} 30. a3 {[%emt 0:00:17]} Rxe2 {[%emt 0:00:20]} 31. axb4 {[%emt 0:00:03]} Rb2 {[%emt 0:00:25]} 32. bxa5 {[%emt 0:00:09]} Rxb3 {[%emt 0:00:01]} 33. Nd4 {[%emt 0:00:07]} Rb2 {[%emt 0:00:30]} 34. f3 {[%emt 0:00:21]} Bg6 {[%emt 0:00:07]} 35. Ra1 {[%emt 0:00:12]} Nh5 {[%emt 0:00:02]} 36. a6 {[%emt 0:00:04]} Bd3+ {[%emt 0:00:02]} 37. Kg1 {[%emt 0:00:05]} Nf4 {[%emt 0:00:17]} 38. a7 {[%emt 0:00:01]} Rxg2+ {[%emt 0:00:05]} 39. Kh1 {[%emt 0:00:05]} Rg3 {[%emt 0:00:06]} 40. a8=Q+ {[%emt 0:00:04]} Kh7 41. Kh2 {[%emt 0:00:04]} Rg2+ {[%emt 0:00:02]} 42. Kh1 {[%emt 0:00:01]} Rg3 {[%emt 0:00:00]} 43. Ra2 {[%emt 0:00:15]} Bc4 {[%emt 0:00:03]} 44. Rh2 {[%emt 0:00:03]} Nd3 {[%emt 0:00:02]} 45. Rg1 {[%emt 0:00:06]} Rxg1+ {[%emt 0:00:07]} 46. Kxg1 {[%emt 0:00:01]} e5 {[%emt 0:00:00]} 47. Nc2 {[%emt 0:00:03]} e4 {[%emt 0:00:02]} 48. fxe4 {[%emt 0:00:01]} dxe4 {[%emt 0:00:01]} 49. Qxe4+ {[%emt 0:00:02]} 1-0